bitfinex-derivatives/quotes_SOLF0:USTF0_20251025
["timestamp","ask_amount","ask_price","bid_price","bid_amount"]
[1761401480532,3.87481569,192.24,192.19,2.64]
[1761401480731,3.87481569,192.23,192.19,2.64]
[1761401481029,3.87481569,192.22,192.19,2.64]
[1761401481325,4.82797869,192.26,192.19,2.64]
[1761401481326,3.87481569,192.21,192.19,2.64]
[1761401481530,4.82797869,192.26,192.19,2.64]
[1761401481730,3.87484903,192.25,192.19,2.64]
[1761401481923,4.82797869,192.26,192.19,2.64]
[1761401481924,3.87484903,192.24,192.19,2.64]
[1761401482124,3.87484903,192.23,192.19,2.64]
[1761401482323,3.87484903,192.22,192.19,2.64]
[1761401482520,4.82797869,192.27,192.19,2.64]
[1761401482730,3.87546531,192.26,192.19,2.64]
[1761401482931,3.87546531,192.25,192.19,2.64]
[1761401483122,3.87546531,192.24,192.19,2.64]
[1761401483323,3.87546531,192.23,192.19,2.64]
[1761401483523,4.82797869,192.28,192.19,2.64]
[1761401483723,3.87566514,192.27,192.19,2.64]
[1761401483928,3.87566514,192.26,192.19,2.64]
[1761401484125,3.87566514,192.25,192.19,2.64]
[1761401484322,3.87566514,192.24,192.19,2.64]
[1761401484518,3.87566514,192.23,192.19,2.64]
[1761401484727,4.82797869,192.28,192.19,2.64]
[1761401484927,3.87498978,192.27,192.19,2.64]
[1761401485131,3.87498978,192.26,192.19,2.64]
[1761401485333,3.87498978,192.25,192.19,2.64]
[1761401485531,3.87498978,192.24,192.19,2.64]
[1761401485732,3.87498978,192.23,192.19,2.64]
[1761401485934,4.82797869,192.28,192.19,2.64]
[1761401486129,3.87491491,192.27,192.19,2.64]
[1761401486331,3.87491491,192.26,192.19,2.64]
[1761401486525,3.87491491,192.25,192.19,2.64]
[1761401486837,3.87491491,192.24,192.19,2.64]
[1761401487132,3.87491491,192.23,192.19,2.64]
[1761401487430,4.82797869,192.28,192.19,2.64]
[1761401487632,3.87417238,192.27,192.19,2.64]
[1761401487829,3.87417238,192.26,192.19,2.64]
[1761401488132,3.87417238,192.25,192.19,2.64]
[1761401488432,3.87417238,192.24,192.19,2.64]
[1761401488626,4.82797869,192.29,192.19,2.64]
[1761401488825,3.87378572,192.28,192.19,2.64]
[1761401489024,3.87378572,192.27,192.19,2.64]
[1761401489230,3.87378572,192.26,192.19,2.64]
[1761401489429,3.87378572,192.25,192.19,2.64]
[1761401489624,3.87378572,192.24,192.19,2.64]
[1761401489828,4.82797869,192.29,192.19,2.64]
[1761401490029,3.87315455,192.28,192.19,2.64]
[1761401490229,3.87315455,192.27,192.19,2.64]
[1761401490530,3.87315455,192.26,192.19,2.64]
[1761401490732,3.87315455,192.25,192.19,2.64]
[1761401490931,3.87315455,192.24,192.19,2.64]
[1761401491129,4.82797869,192.29,192.19,2.64]
[1761401491331,3.87244723,192.28,192.19,2.64]
[1761401491632,3.87244723,192.27,192.19,2.64]
[1761401491828,3.87244723,192.26,192.19,2.64]
[1761401492028,3.87244723,192.25,192.19,2.64]
[1761401492230,4.82797869,192.3,192.19,2.64]
[1761401492537,3.87215895,192.29,192.19,2.64]
[1761401492737,3.87215895,192.28,192.19,2.64]
[1761401492933,3.87215895,192.27,192.19,2.64]
[1761401493134,3.87215895,192.26,192.19,2.64]
[1761401493336,3.87215895,192.25,192.19,2.64]
[1761401493539,4.82797869,192.3,192.19,2.64]
[1761401493727,3.87168522,192.29,192.19,2.64]
[1761401493926,3.87168522,192.28,192.19,2.64]
[1761401494131,3.87168522,192.27,192.19,2.64]
[1761401494432,3.87168522,192.26,192.19,2.64]
[1761401494635,3.87168522,192.25,192.19,2.64]
[1761401494834,4.82797869,192.3,192.19,2.64]
[1761401495037,3.87026004,192.29,192.19,2.64]
[1761401495333,3.87026004,192.28,192.19,2.64]
[1761401495538,3.87026004,192.27,192.19,2.64]
[1761401495734,3.87026004,192.26,192.19,2.64]
[1761401495935,3.87026004,192.26,192.15,62.0]
[1761401495936,4.82797869,192.31,192.21,2.64]
[1761401496137,3.86989698,192.3,192.22,63.14]
[1761401496330,3.86989698,192.29,192.22,63.14]
[1761401496530,3.86989698,192.28,192.22,63.14]
[1761401496729,3.86989698,192.27,192.22,65.78]
[1761401496928,3.86989698,192.26,192.22,65.78]
[1761401497126,4.82797869,192.31,192.22,65.78]
[1761401497330,8.69720791,192.3,192.22,63.14]
[1761401497527,3.86922922,192.29,192.22,63.14]
[1761401497734,3.86922922,192.28,192.22,63.14]
[1761401497932,3.86922922,192.27,192.22,63.14]
[1761401498136,3.86922922,192.26,192.22,63.14]
[1761401498427,3.86922922,192.25,192.22,63.14]
[1761401498631,4.34861065,192.29,192.19,2.64]
[1761401498837,3.86909528,192.28,192.19,2.64]
[1761401499027,3.86909528,192.27,192.19,2.64]
[1761401499235,3.86909528,192.26,192.19,2.64]
[1761401499436,3.86909528,192.25,192.19,2.64]
[1761401499634,3.86909528,192.24,192.19,2.64]
[1761401499835,4.34861065,192.28,192.19,2.64]
[1761401500035,4.82797869,192.29,192.19,65.78]
[1761401500036,3.86742627,192.27,192.19,65.78]
[1761401500337,3.86742627,192.26,192.19,63.14]
[1761401500538,3.86742627,192.25,192.2,2.67]
[1761401500741,3.86742627,192.24,192.2,2.67]
[1761401500941,4.34680429,192.28,192.2,2.67]
[1761401501146,3.86751341,192.27,192.2,2.67]
[1761401501439,3.86751341,192.26,192.2,2.67]
[1761401501640,3.86751341,192.25,192.2,2.67]
[1761401501841,3.86751341,192.24,192.2,2.67]
[1761401502042,4.34688252,192.28,192.2,2.67]
[1761401502253,3.86765468,192.27,192.2,2.67]
[1761401502444,3.86765468,192.26,192.2,2.67]
[1761401502636,3.86765468,192.25,192.2,2.67]
[1761401502946,4.34688252,192.28,192.2,2.67]
[1761401502947,3.86765468,192.24,192.2,2.67]
[1761401503147,4.34688252,192.28,192.2,2.67]
[1761401503338,3.8677478,192.27,192.2,2.67]
[1761401503539,3.8677478,192.26,192.2,2.67]
[1761401503838,3.8677478,192.25,192.2,2.67]
[1761401504038,3.8677478,192.24,192.2,2.67]
[1761401504234,4.34681769,192.28,192.2,2.67]
[1761401504430,3.86761339,192.27,192.2,2.67]
[1761401504642,3.86761339,192.26,192.2,2.67]
[1761401504839,3.86761339,192.25,192.2,2.67]
[1761401505039,3.86761339,192.24,192.2,2.67]
[1761401505244,4.34681769,192.28,192.2,2.67]
[1761401505544,3.86782261,192.27,192.2,2.67]
[1761401505738,3.86782261,192.26,192.2,2.67]
[1761401505936,3.86782261,192.25,192.2,2.67]
[1761401506137,3.86782261,192.24,192.2,2.67]
[1761401506338,4.34711732,192.28,192.2,2.67]
[1761401506541,3.86796571,192.27,192.2,2.67]
[1761401506738,3.86796571,192.26,192.2,2.67]
[1761401506939,3.86796571,192.25,192.2,2.67]
[1761401507140,3.86796571,192.24,192.2,2.67]
[1761401507340,4.34727499,192.28,192.2,2.67]
[1761401507542,3.8684838,192.27,192.2,2.67]
[1761401507842,3.8684838,192.26,192.2,2.67]
[1761401508140,3.8684838,192.25,192.2,2.67]
[1761401508341,3.8684838,192.24,192.2,2.67]
[1761401508542,4.34727499,192.28,192.2,2.67]
[1761401508744,4.82797869,192.29,192.2,2.67]
[1761401508745,3.82117719,192.27,192.2,2.67]
[1761401508948,3.82117719,192.26,192.2,2.67]
[1761401509247,3.82117719,192.25,192.2,2.67]
[1761401509447,3.82117719,192.24,192.2,2.67]
[1761401509646,4.34727499,192.28,192.2,2.67]
[1761401509946,3.82114832,192.27,192.2,2.67]
[1761401510147,3.82114832,192.26,192.2,2.67]
[1761401510340,3.82114832,192.25,192.2,2.67]
[1761401510548,3.82114832,192.24,192.2,2.67]
[1761401510742,4.34727499,192.28,192.2,2.67]
[1761401510942,3.82137214,192.27,192.2,2.67]
[1761401511143,3.82137214,192.26,192.2,2.67]
[1761401511344,3.82137214,192.25,192.2,2.67]
[1761401511545,3.82137214,192.24,192.2,2.67]
[1761401511745,4.34727499,192.28,192.2,2.67]
[1761401512046,3.82151742,192.27,192.2,2.67]
[1761401512243,3.82151742,192.26,192.2,2.67]
[1761401512444,3.82151742,192.25,192.2,2.67]
[1761401512649,3.82151742,192.24,192.2,2.67]
[1761401512848,4.34727499,192.28,192.2,2.67]
[1761401513048,3.82152486,192.27,192.2,2.67]
[1761401513251,3.82152486,192.26,192.2,2.67]
[1761401513447,3.82152486,192.25,192.2,2.67]
[1761401513748,3.82152486,192.24,192.2,2.67]
[1761401513948,4.34727499,192.28,192.2,2.67]
[1761401514148,3.82167603,192.27,192.2,2.67]
[1761401514357,3.82167603,192.26,192.2,2.67]
[1761401514538,3.82167603,192.25,192.2,2.67]
[1761401514737,3.82167603,192.24,192.2,2.67]
[1761401514944,4.39726127,192.28,192.2,2.67]
[1761401515140,3.82177165,192.27,192.2,2.67]
[1761401515346,3.82177165,192.26,192.2,2.67]
[1761401515548,3.82177165,192.25,192.2,2.67]
[1761401515750,3.82177165,192.24,192.2,2.67]
[1761401515949,6.03410546,192.29,192.2,2.67]
[1761401516148,8.64994207,192.28,192.2,2.67]
[1761401516352,8.21944846,192.27,192.2,2.67]
[1761401516652,3.82196338,192.26,192.2,2.67]
[1761401516853,3.82196338,192.25,192.2,2.67]
[1761401517047,3.82196338,192.24,192.2,2.67]
[1761401517249,4.39748508,192.27,192.2,2.67]
[1761401517448,3.82262864,192.26,192.2,2.67]
[1761401517646,3.82262864,192.25,192.2,2.67]
[1761401517840,3.82262864,192.24,192.2,2.67]
[1761401518064,4.39856107,192.28,192.2,2.67]
[1761401518259,3.82313984,192.27,192.2,2.67]
[1761401518540,3.82313984,192.26,192.2,2.67]
[1761401518749,3.82313984,192.25,192.2,2.67]
[1761401518950,3.82313984,192.24,192.21,1.20612677]
[1761401519148,4.39856107,192.28,192.22,2.67]
[1761401519356,3.82337712,192.27,192.22,2.67]
[1761401519658,3.82337712,192.26,192.22,2.67]
[1761401519860,3.82337712,192.25,192.22,2.67]
[1761401520049,20.37245107,192.31,192.22,2.67]
[1761401520249,13.05214877,192.3,192.22,2.67]
[1761401520452,3.8243127,192.29,192.22,2.67]
[1761401520756,3.8243127,192.28,192.22,2.67]
[1761401520960,3.8243127,192.27,192.22,2.67]
[1761401521149,4.39987028,192.31,192.22,2.67]
[1761401521354,3.82396919,192.3,192.22,2.67]
[1761401521553,3.82396919,192.29,192.22,2.67]
[1761401521754,3.82396919,192.28,192.22,2.67]
[1761401521956,4.39987028,192.31,192.22,2.67]
[1761401521957,3.82396919,192.27,192.22,2.67]
[1761401522151,4.39987028,192.31,192.22,2.67]
[1761401522353,3.8235201,192.3,192.22,2.67]
[1761401522555,3.8235201,192.29,192.22,2.67]
[1761401522757,3.8235201,192.28,192.22,2.67]
[1761401522957,3.8235201,192.27,192.22,2.67]
[1761401523260,4.39987028,192.31,192.22,2.67]
[1761401523448,3.82312051,192.3,192.22,2.67]
[1761401523648,3.82312051,192.29,192.22,2.67]
[1761401523854,3.82312051,192.28,192.22,2.67]
[1761401524055,4.39987028,192.31,192.22,2.67]
[1761401524360,3.82330482,192.3,192.22,2.67]
[1761401524558,3.82330482,192.29,192.22,2.67]
[1761401524759,3.82330482,192.28,192.22,2.67]
[1761401524959,4.39987028,192.31,192.22,2.67]
[1761401525259,3.82312388,192.3,192.22,2.67]
[1761401525459,3.82312388,192.29,192.22,2.67]
[1761401525761,3.82312388,192.28,192.22,2.67]
[1761401525961,4.39987028,192.31,192.22,2.67]
[1761401526259,3.82287804,192.3,192.22,2.67]
[1761401526454,3.82287804,192.29,192.22,2.67]
[1761401526654,3.82287804,192.28,192.22,2.67]
[1761401526851,4.39987028,192.31,192.22,2.67]
[1761401527053,3.82270687,192.3,192.22,2.67]
[1761401527256,3.82270687,192.29,192.22,2.67]
[1761401527450,3.82270687,192.28,192.22,2.67]
[1761401527664,4.39987028,192.31,192.22,2.67]
[1761401527854,3.82260449,192.3,192.22,2.67]
[1761401528050,3.82260449,192.29,192.22,2.67]
[1761401528264,3.82260449,192.28,192.22,2.67]
[1761401528561,4.39987028,192.31,192.22,2.67]
[1761401528751,3.8223237,192.3,192.22,2.67]
[1761401528950,3.8223237,192.29,192.22,2.67]
[1761401529160,3.8223237,192.28,192.22,2.67]
[1761401529359,4.39987028,192.31,192.22,2.67]
[1761401529560,3.82200285,192.3,192.22,2.67]
[1761401529761,3.82200285,192.29,192.22,2.67]
[1761401529960,3.82200285,192.28,192.22,2.67]
[1761401530158,4.39987028,192.31,192.22,2.67]
[1761401530363,3.82277546,192.3,192.22,2.67]
[1761401530559,3.82277546,192.29,192.22,2.67]
[1761401530750,3.82277546,192.28,192.22,2.67]
[1761401530952,4.39921365,192.32,192.22,2.67]
[1761401531156,3.82406128,192.31,192.22,2.67]
[1761401531357,3.82406128,192.3,192.22,2.67]
[1761401531656,3.82406128,192.29,192.22,2.67]
[1761401531855,3.82406128,192.28,192.22,2.67]
[1761401532056,4.39921365,192.32,192.22,2.67]
[1761401532364,3.82373978,192.31,192.22,2.67]
[1761401532663,3.82373978,192.3,192.22,2.67]
[1761401532864,3.82373978,192.29,192.22,2.67]
[1761401533075,3.82373978,192.28,192.22,2.67]
[1761401533262,4.39921365,192.32,192.22,2.67]
[1761401533457,3.82335253,192.31,192.22,2.67]
[1761401533658,3.82335253,192.3,192.22,2.67]
[1761401533964,3.82335253,192.29,192.23,49.28]
[1761401534163,3.82335253,192.28,192.24,2.82]
[1761401534364,4.39921365,192.32,192.24,2.82]
[1761401534565,3.82314116,192.31,192.24,2.82]
[1761401534866,3.82314116,192.3,192.24,2.82]
[1761401535064,3.82314116,192.29,192.24,2.82]
[1761401535260,3.82314116,192.28,192.24,2.82]
[1761401535566,4.39921365,192.32,192.24,2.82]
[1761401535759,3.82295561,192.31,192.24,2.82]
[1761401535958,3.82295561,192.3,192.24,2.82]
[1761401536165,3.82295561,192.29,192.24,2.82]
[1761401536463,3.82295561,192.28,192.24,2.82]
[1761401536663,4.39921365,192.32,192.24,2.82]
[1761401536864,3.82278683,192.31,192.24,2.82]
[1761401537170,3.82278683,192.3,192.24,2.82]
[1761401537472,3.82278683,192.29,192.24,2.82]
[1761401537658,3.82278683,192.28,192.24,2.82]
[1761401537958,4.39921365,192.32,192.24,2.82]
[1761401538154,3.82262983,192.31,192.24,2.82]
[1761401538358,3.82262983,192.3,192.24,2.82]
[1761401538559,3.82262983,192.29,192.24,2.82]
[1761401538863,3.82262983,192.28,192.24,2.82]
[1761401539067,3.81892571,192.27,192.24,2.82]
[1761401539268,4.39744708,192.31,192.24,2.82]
[1761401539468,3.81888208,192.3,192.24,2.82]
[1761401539668,3.81888208,192.29,192.24,2.82]
[1761401539968,3.81888208,192.28,192.24,2.82]
[1761401540267,3.81888208,192.27,192.24,2.82]
[1761401540465,3.81879812,192.3,192.24,2.82]
[1761401540663,3.81879812,192.29,192.24,2.82]
[1761401540872,3.81879812,192.28,192.24,2.82]
[1761401541066,4.39712534,192.32,192.24,2.82]
[1761401541258,3.81869403,192.31,192.24,2.82]
[1761401541464,3.81869403,192.3,192.24,2.82]
[1761401541665,3.81869403,192.29,192.24,2.82]
[1761401541864,3.81869403,192.28,192.24,2.82]
[1761401542071,4.39712534,192.32,192.24,2.82]
[1761401542267,3.81844818,192.31,192.24,2.82]
[1761401542465,3.81844818,192.3,192.24,2.82]
[1761401542668,3.81844818,192.29,192.24,2.82]
[1761401542968,3.81844818,192.28,192.24,2.82]
[1761401543159,4.39712534,192.32,192.24,2.82]
[1761401543362,3.81838128,192.31,192.24,2.82]
[1761401543565,3.81838128,192.3,192.24,2.82]
[1761401543769,3.81838128,192.29,192.24,2.82]
[1761401543968,3.81838128,192.28,192.24,2.82]
[1761401544162,4.39712534,192.32,192.24,2.82]
[1761401544360,3.81844356,192.31,192.24,2.82]
[1761401544562,3.81844356,192.3,192.24,2.82]
[1761401544770,3.81844356,192.29,192.24,2.82]
[1761401544971,3.81844356,192.28,192.24,2.82]
[1761401545269,4.39712534,192.32,192.24,2.82]
[1761401545470,3.81820184,192.31,192.24,2.82]
[1761401545662,3.81820184,192.3,192.24,2.82]
[1761401545858,3.81820184,192.29,192.24,2.82]
[1761401546069,3.81820184,192.28,192.24,2.82]
[1761401546269,4.39712534,192.32,192.24,2.82]
[1761401546470,3.81811904,192.31,192.24,2.82]
[1761401546771,3.81811904,192.3,192.24,2.82]
[1761401546973,3.81797031,192.29,192.24,2.82]
[1761401547165,3.81797031,192.28,192.24,2.82]
[1761401547362,3.81797031,192.27,192.24,2.82]
[1761401547562,4.39712534,192.31,192.24,2.82]
[1761401547763,3.81794276,192.3,192.24,2.82]
[1761401547969,3.81794276,192.29,192.24,2.82]
[1761401548172,3.81794276,192.28,192.24,2.82]
[1761401548377,3.81794276,192.27,192.24,2.82]
[1761401548672,4.39712534,192.31,192.24,2.82]
[1761401548870,3.81855137,192.3,192.24,2.82]
[1761401549073,3.81855137,192.29,192.24,2.82]
[1761401549269,3.81855137,192.28,192.24,2.82]
[1761401549473,3.81855137,192.27,192.24,2.82]
[1761401549662,4.39712534,192.31,192.24,2.82]
[1761401549866,3.81871577,192.3,192.24,2.82]
[1761401550070,3.81871577,192.29,192.24,2.82]
[1761401550270,3.81871577,192.28,192.24,2.82]
[1761401550575,4.82564885,192.33,192.24,2.82]
[1761401550777,3.81896289,192.32,192.24,2.82]
[1761401550968,3.81896289,192.31,192.24,2.82]
[1761401551168,3.81896289,192.3,192.24,2.82]
[1761401551471,3.81896289,192.29,192.24,2.82]
[1761401551671,3.81896289,192.28,192.24,2.82]
[1761401551878,4.40684983,192.32,192.24,2.82]
[1761401552077,3.81926028,192.31,192.24,2.82]
[1761401552265,3.81926028,192.3,192.24,2.82]
[1761401552467,3.81926028,192.29,192.24,2.82]
[1761401552664,3.81926028,192.28,192.24,2.82]
[1761401552968,4.40684983,192.32,192.24,2.82]
[1761401553166,3.81993558,192.31,192.24,2.82]
[1761401553375,3.81993558,192.3,192.24,2.82]
[1761401553580,3.81993558,192.29,192.24,2.82]
[1761401553775,3.81993558,192.28,192.24,2.82]
[1761401553974,4.40684983,192.32,192.24,2.82]
[1761401554176,3.82012679,192.31,192.24,2.82]
[1761401554377,3.82012679,192.3,192.24,2.82]
[1761401554577,3.82012679,192.29,192.24,2.82]
[1761401554772,3.82012679,192.28,192.24,2.82]
[1761401554968,4.40684983,192.32,192.24,2.82]
[1761401555168,3.82034876,192.31,192.24,2.82]
[1761401555380,3.82034876,192.3,192.24,2.82]
[1761401555572,3.82034876,192.29,192.24,2.82]
[1761401555768,3.82034876,192.28,192.24,2.82]
[1761401555977,4.40684983,192.32,192.24,2.82]
[1761401556277,3.82071231,192.31,192.24,2.82]
[1761401556477,3.82071231,192.3,192.24,2.82]
[1761401556679,3.82071231,192.29,192.24,2.82]
[1761401556879,3.82071231,192.28,192.24,2.82]
[1761401557179,4.40684983,192.32,192.24,2.82]
[1761401557373,3.82160235,192.31,192.24,2.82]
[1761401557578,3.82160235,192.3,192.24,2.82]
[1761401557776,3.82160235,192.29,192.24,2.82]
[1761401557978,3.82160235,192.28,192.24,2.82]
[1761401558177,4.40684983,192.32,192.24,1.20612677]
[1761401558377,3.82179396,192.31,192.25,2.7]
[1761401558584,3.82179396,192.3,192.25,2.7]
[1761401558786,3.82179396,192.29,192.25,2.7]
[1761401558987,3.82179396,192.28,192.25,2.7]
[1761401559179,4.40684983,192.32,192.25,2.7]
[1761401559384,3.82167546,192.31,192.25,2.7]
[1761401559584,3.82167546,192.3,192.25,2.7]
[1761401559884,3.82167546,192.29,192.25,2.7]
[1761401560186,3.82167546,192.28,192.25,2.7]
[1761401560387,4.40684983,192.32,192.25,2.7]
[1761401560686,3.8222778,192.31,192.25,2.7]
[1761401560886,3.8222778,192.3,192.25,2.7]
[1761401561086,3.8222778,192.29,192.25,2.7]
[1761401561279,4.40684983,192.32,192.25,2.7]
[1761401561480,3.82296508,192.31,192.25,2.7]
[1761401561777,3.82296508,192.3,192.25,2.7]
[1761401562086,3.82296508,192.29,192.25,2.7]
[1761401562286,3.82296508,192.28,192.25,2.7]
[1761401562485,4.41109654,192.32,192.25,2.7]
[1761401562787,3.82369175,192.31,192.25,2.7]
[1761401563082,3.82369175,192.3,192.25,2.7]
[1761401563288,3.82369175,192.29,192.25,2.7]
[1761401563476,3.82369175,192.28,192.25,2.7]
[1761401563679,4.41211959,192.32,192.25,2.7]
[1761401563880,3.82423868,192.31,192.25,2.7]
[1761401564080,3.82423868,192.3,192.25,2.7]
[1761401564384,3.82423868,192.29,192.25,2.7]
[1761401564585,3.82423868,192.28,192.25,2.7]
[1761401564787,4.41211959,192.32,192.25,2.7]
[1761401564981,3.82430938,192.31,192.25,2.7]
[1761401565181,3.82430938,192.3,192.25,2.7]
[1761401565384,3.82430938,192.29,192.25,2.7]
[1761401565584,3.82430938,192.28,192.25,2.7]
[1761401565780,4.41186439,192.32,192.25,2.7]
[1761401565980,3.82347681,192.31,192.25,2.7]
[1761401566186,3.82347681,192.3,192.25,2.7]
[1761401566479,4.41186439,192.32,192.25,2.7]
[1761401566480,3.82347681,192.29,192.25,2.7]
[1761401566678,3.82347681,192.28,192.25,2.7]
[1761401566876,4.41186439,192.32,192.25,2.7]
[1761401567083,3.82331498,192.31,192.25,2.7]
[1761401567387,3.82331498,192.3,192.25,2.7]
[1761401567588,3.82331498,192.29,192.25,2.7]
[1761401567789,3.82331498,192.28,192.25,2.7]
[1761401567989,4.41186439,192.32,192.25,2.7]
[1761401568192,3.82265737,192.31,192.25,2.7]
[1761401568492,3.82265737,192.3,192.25,2.7]
[1761401568684,3.82265737,192.29,192.25,2.7]
[1761401568884,3.82265737,192.28,192.25,2.7]
[1761401569179,4.41074372,192.32,192.25,2.7]
[1761401569382,3.80480682,192.31,192.25,2.7]
[1761401569579,3.80480682,192.3,192.25,2.7]
[1761401569793,3.80480682,192.29,192.25,2.7]
[1761401569989,3.80480682,192.28,192.25,2.7]
[1761401570185,4.41074372,192.32,192.25,2.7]
[1761401570391,3.80443317,192.31,192.25,2.7]
[1761401570685,3.80443317,192.3,192.25,2.7]
[1761401570890,3.80443317,192.29,192.25,2.7]
[1761401571089,3.80443317,192.28,192.25,2.7]
[1761401571290,4.40978356,192.32,192.25,2.7]
[1761401571485,3.80424095,192.31,192.25,2.7]
[1761401571695,3.80424095,192.3,192.25,2.7]
[1761401571894,3.80424095,192.29,192.25,2.7]
[1761401572094,4.40978356,192.32,192.25,2.7]
[1761401572290,3.80424095,192.31,192.25,2.7]
[1761401572491,3.80424095,192.3,192.25,2.7]
[1761401572694,3.80424095,192.29,192.25,2.7]
[1761401572889,4.40978356,192.32,192.25,2.7]
[1761401573195,3.80416482,192.31,192.25,2.7]
[1761401573396,3.80416482,192.3,192.25,2.7]
[1761401573696,4.40978356,192.32,192.25,2.7]
[1761401573697,3.80416482,192.29,192.25,2.7]
[1761401573899,4.40978356,192.32,192.25,2.7]
[1761401574097,3.80390574,192.31,192.25,2.7]
[1761401574396,3.80390574,192.3,192.25,2.7]
[1761401574597,3.80390574,192.29,192.25,2.7]
[1761401574797,4.40978356,192.32,192.25,2.7]
[1761401574993,3.8033032,192.31,192.25,2.7]
[1761401575194,3.8033032,192.3,192.25,2.7]
[1761401575492,3.8033032,192.29,192.25,2.7]
[1761401575691,4.82564885,192.34,192.25,2.7]
[1761401575892,8.19973419,192.33,192.25,2.7]
[1761401576100,3.80321823,192.32,192.25,2.7]
[1761401576396,3.80321823,192.31,192.25,2.7]
[1761401576597,3.80321823,192.3,192.25,2.7]
[1761401576791,3.80321823,192.29,192.25,2.7]
[1761401576991,4.39651596,192.33,192.25,2.7]
[1761401577198,3.80314417,192.32,192.25,2.7]
[1761401577498,3.80314417,192.31,192.25,2.7]
[1761401577694,3.80314417,192.3,192.25,2.7]
[1761401577888,3.80314417,192.29,192.25,2.7]
[1761401578089,4.39651596,192.33,192.25,2.7]
[1761401578293,3.80327424,192.32,192.25,2.7]
[1761401578496,3.80327424,192.31,192.25,2.7]
[1761401578798,3.80327424,192.3,192.25,2.7]
[1761401578999,3.80327424,192.29,192.25,2.7]
[1761401579200,4.39651596,192.33,192.25,2.7]
[1761401579393,3.80332839,192.32,192.25,2.7]
[1761401579592,3.80332839,192.31,192.25,2.7]
[1761401579790,3.80332839,192.3,192.25,2.7]
[1761401579995,3.80332839,192.29,192.25,2.7]
[1761401580195,4.39651596,192.33,192.25,2.7]
[1761401580396,3.80328433,192.32,192.25,2.7]
[1761401580599,3.80328433,192.31,192.25,2.7]
[1761401580894,3.80328433,192.3,192.25,2.7]
[1761401581098,3.80328433,192.29,192.25,2.7]
[1761401581298,4.39651596,192.33,192.25,2.7]
[1761401581597,3.80325942,192.32,192.25,2.7]
[1761401581799,3.80325942,192.31,192.25,2.7]
[1761401582001,3.80325942,192.3,192.25,2.7]
[1761401582201,3.80325942,192.29,192.25,2.7]
[1761401582398,4.39651596,192.33,192.25,2.7]
[1761401582604,3.80324278,192.32,192.25,2.7]
[1761401582799,3.80324278,192.31,192.25,2.7]
[1761401583001,3.80324278,192.3,192.25,2.7]
[1761401583300,3.80324278,192.29,192.25,2.7]
[1761401583501,4.39651596,192.33,192.25,2.7]
[1761401583702,3.80326229,192.32,192.25,2.7]
[1761401583905,3.80326229,192.31,192.25,2.7]
[1761401584109,3.80326229,192.3,192.25,2.7]
[1761401584407,3.80326229,192.29,192.25,2.7]
[1761401584607,4.39651596,192.33,192.25,2.7]
[1761401584904,3.80319498,192.32,192.25,2.7]
[1761401585104,3.80319498,192.31,192.25,2.7]
[1761401585293,3.80319498,192.3,192.25,2.7]
[1761401585498,3.80319498,192.29,192.25,2.7]
[1761401585708,4.39651596,192.33,192.25,2.7]
[1761401585909,3.80334064,192.32,192.25,2.7]
[1761401586099,3.80334064,192.31,192.25,2.7]
[1761401586300,3.80334064,192.3,192.25,2.7]
[1761401586600,3.80334064,192.29,192.25,2.7]
[1761401586797,4.39651596,192.33,192.25,2.7]